fUSD/lending_fUSD_20250526
["ID","MTS","AMOUNT","RATE_DAILY","PERIOD"]
[362403273,1748253083587,-150.0,0.00039917,120]
[362403274,1748253083593,-500.0,0.0003992,7]
[362403275,1748253083602,-5000.0,0.00039935,2]
[362403276,1748253083609,-5000.0,0.00039943,2]
[362403277,1748253083616,-500.0,0.00039954,7]
[362403278,1748253083624,-5000.0,0.00039966,2]
[362403279,1748253083631,-150.0,0.00039996,120]
[362403280,1748253083642,-50000.0,0.0004,40]
[362403281,1748253083651,-1581.24716456,0.0004,2]
[362403282,1748253083662,-9000.0,0.0004,5]
[362403283,1748253083672,-362709.99210761,0.0004,2]
[362403284,1748253083682,-358.0,0.0004,2]
[362403285,1748253083691,-150.0,0.0004,2]
[362403286,1748253083700,-592.96385328,0.0004,2]
[362403287,1748253083710,-16701.10252211,0.0004,2]
[362403288,1748253083720,-380.8763047,0.0004,2]
[362403289,1748253083729,-5095.56337672,0.0004,2]
[362403290,1748253083738,-213.46852582,0.0004,2]
[362403291,1748253083747,-1304.79276788,0.0004,2]
[362403292,1748253083757,-41380.0,0.0004,5]
[362403293,1748253083766,-461.0,0.0004,2]
[362403294,1748253083775,-60815.63890289,0.0004,2]
[362403295,1748253083784,-500.0,0.0004,10]
[362403296,1748253083793,-250.0,0.0004,7]
[362403297,1748253083803,-33008.40879507,0.0004,5]
[362403298,1748253083812,-5000.0,0.0004,10]
[362403299,1748253083822,-3330.46833418,0.0004,12]
[362403300,1748253083831,-1374.33735559,0.0004,2]
[362403301,1748253083841,-37195.16621949,0.0004,2]
[362403302,1748253083851,-17696.7554434,0.0004,2]
[362403303,1748253083861,-7734.0,0.0004,5]
[362403304,1748253083870,-410.19536287,0.0004,7]
[362403305,1748253083879,-949.96364703,0.0004,7]
[362403306,1748253083889,-2019.244,0.0004,10]
[362403307,1748253083898,-404030.21392817,0.0004,4]
[362403308,1748253083907,-2299.99999902,0.0004,2]
[362403309,1748253083917,-7654.39834865,0.0004,2]
[362403310,1748253083926,-341.78818644,0.0004,5]
[362403311,1748253083937,-158.0,0.0004,2]
[362403312,1748253083947,-159.42692917,0.0004,2]
[362403313,1748253083956,-425.99,0.0004,30]
[362403314,1748253083966,-10000.0,0.0004,120]
[362403315,1748253083976,-190.19949253,0.0004,30]
[362403316,1748253083986,-20482.73298444,0.0004,120]
[362403317,1748253083995,-2528.0376896,0.0004,90]
[362403318,1748253084005,-431.35278613,0.0004,120]
[362403319,1748253084014,-665.6720027,0.0004,120]
[362403320,1748253084023,-291.92183001,0.0004,60]
[362403321,1748253084033,-492.10257855,0.0004,120]
[362403322,1748253084042,-424.1204541,0.0004,120]
[362403323,1748253084055,-263.78015882,0.0004,60]
[362403324,1748253084064,-500.0,0.0004,90]
[362403325,1748253084073,-340.71440083,0.0004,120]
[362403326,1748253084083,-300.0,0.0004,120]
[362403327,1748253084093,-350.0,0.0004,120]
[362403328,1748253084102,-551.0,0.0004,120]
[362403329,1748253084111,-200.0,0.0004,120]
[362403330,1748253084121,-2278.0,0.0004,120]
[362403331,1748253084131,-2099.0,0.0004,120]
[362403332,1748253084140,-10000.0,0.0004,120]
[362403333,1748253084150,-10000.0,0.0004,120]
[362403334,1748253084159,-10000.0,0.0004,120]
[362403335,1748253084168,-150.0,0.00040004,120]
[362403336,1748253084178,-500.0,0.00040009,30]
[362403337,1748253084188,-150.0,0.00040011,2]
[362403338,1748253084198,-2000.0,0.00040021,30]
[362403339,1748253084208,-150.0,0.00040038,120]
[362403340,1748253084217,-500.0,0.00040051,30]
[362403341,1748253084227,-475.47033,0.00040088,30]
[362403342,1748253084237,-235.50345037,0.00040119,5]
[362403343,1748253084246,-150.0,0.00040136,2]
[362403344,1748253084255,-500.0,0.00040147,30]
[362403345,1748253084265,-500.0,0.00040147,30]
[362403346,1748253084274,-570.31924979,0.00040149,30]
[362403347,1748253084284,-150.0,0.00040178,2]
[362403348,1748253084295,-150.0,0.0004018,2]
[362403349,1748253084306,-500.0,0.00040208,30]
[362403350,1748253084317,-150.0,0.00040215,2]
[362403351,1748253084328,-325.55,0.00040274,2]
[362403352,1748253084337,-170.26,0.00040274,2]
[362403353,1748253084347,-340.52,0.00040274,2]
[362403354,1748253084358,-340.5,0.00040274,2]
[362403355,1748253084367,-170.26,0.00040274,2]
[362403356,1748253084378,-170.26,0.00040274,2]
[362403357,1748253084388,-475.47033,0.00040288,30]
[362403358,1748253084398,-339.86504,0.000403,120]
[362403359,1748253084409,-150.0,0.00040308,2]
[362403360,1748253084418,-1800.0,0.00040369,30]
[362403361,1748253084428,-150.0,0.00040375,2]
[362403362,1748253084437,-150.0,0.00040385,120]
[362403363,1748253084447,-1000.0,0.00040385,30]
[362403364,1748253084458,-1000.0,0.00040397,7]
[362403365,1748253084468,-150.0,0.00040412,2]
[362403366,1748253084479,-1000.0,0.0004042,7]
[362403367,1748253084488,-150.0,0.00040421,2]
[362403368,1748253084498,-2833.089105,0.0004043,7]
[362403369,1748253084507,-1435.465986,0.0004043,7]
[362403370,1748253084517,-3251.79415415,0.00040435,30]
[362403371,1748253084527,-623.55696788,0.00040461,30]
[362403372,1748253084536,-150.0,0.00040462,2]
[362403373,1748253084546,-150.0,0.00040471,2]
[362403374,1748253084555,-475.47033,0.00040488,30]
[362403375,1748253084565,-150.0,0.00040497,2]
[362403376,1748253084574,-160.0,0.000405,35]
[362403377,1748253084583,-160.0,0.000405,35]
[362403378,1748253084593,-813.55735483,0.000405,120]
[362403379,1748253084603,-10000.0,0.000405,120]
[362403380,1748253084613,-514.45077473,0.00040502,30]
[362403381,1748253084622,-709.18258487,0.0004051,30]
[362403382,1748253084632,-452.35,0.00040547,2]
[362403383,1748253084642,-1000.0,0.00040604,7]
[362403384,1748253084651,-1000.0,0.00040608,30]
[362403385,1748253084661,-150.0,0.0004061,120]
[362403386,1748253084671,-150.0,0.00040617,120]
[362403387,1748253084682,-150.0,0.00040617,2]
[362403388,1748253084691,-7900.0,0.00040627,30]
[362403389,1748253084701,-1123.09949299,0.00040668,5]
[362403390,1748253084710,-1071.68150793,0.00040668,5]
[362403391,1748253084721,-1042.90096609,0.00040668,5]
[362403392,1748253084732,-1132.98694476,0.00040668,5]
[362403393,1748253084742,-1068.80245582,0.00040668,5]
[362403394,1748253084895,-1036.24694538,0.00040668,5]
[362403395,1748253084905,-1086.18914783,0.00040668,5]
[362403396,1748253084914,-1071.79111188,0.00040668,5]
[362403397,1748253084922,-1105.00422002,0.00040668,5]
[362403398,1748253084931,-1017.88493989,0.00040668,5]
[362403399,1748253084940,-1122.69651198,0.00040668,5]
[362403400,1748253084949,-1004.11248272,0.00040668,5]
[362403401,1748253084957,-1021.42252924,0.00040668,5]
[362403402,1748253084965,-1144.43435913,0.00040668,5]
[362403403,1748253084972,-1125.20064072,0.00040668,5]
[362403404,1748253084979,-1137.82212464,0.00040668,5]
[362403405,1748253084986,-1104.14917285,0.00040668,5]
[362403406,1748253084993,-1022.29016662,0.00040668,5]
[362403407,1748253085000,-1056.03799869,0.00040668,5]
[362403408,1748253085007,-1034.86068649,0.00040668,5]
[362403409,1748253085014,-1058.04087561,0.00040668,5]
[362403410,1748253085020,-1149.25489163,0.00040668,5]
[362403411,1748253085028,-1006.2565212,0.00040668,5]
[362403412,1748253085035,-1134.16666877,0.00040668,5]
[362403413,1748253085042,-1002.28886941,0.00040668,5]
[362403414,1748253085054,-1076.72821353,0.00040668,5]
[362403415,1748253085060,-1129.17998034,0.00040668,5]
[362403416,1748253085067,-1132.66667465,0.00040668,5]
[362403417,1748253085075,-1000.70085183,0.00040668,5]
[362403418,1748253085082,-1080.73724982,0.00040668,5]
[362403419,1748253085090,-1033.420905,0.00040668,5]
[362403420,1748253085097,-1566.25053621,0.00040668,5]
[362403421,1748253085104,-264.63666797,0.00040677,2]
[362403422,1748253085111,-806.25,0.00040685,2]
[362403423,1748253085118,-1245.48,0.00040685,2]
[362403424,1748253085125,-475.47033,0.00040688,30]
[362403425,1748253085132,-150.0,0.00040688,2]
[362403426,1748253085141,-4018.0,0.000407,117]
[362403427,1748253085148,-150.0,0.00040721,2]
[362403428,1748253085154,-500.0,0.00040723,120]
[362403429,1748253085163,-500.0,0.00040744,30]
[362403430,1748253085170,-150.0,0.00040769,2]
[362403431,1748253085177,-1000.0,0.0004079,30]
[362403432,1748253085185,-1348.91,0.000408,120]
[362403433,1748253085192,-150.0,0.00040803,2]
[362403434,1748253085202,-207.0,0.00040844,34]
[362403435,1748253085211,-1000.0,0.00040873,7]
[362403436,1748253085219,-5000.0,0.0004088,120]
[362403437,1748253085225,-150.0,0.00040882,2]
[362403438,1748253085232,-475.47033,0.00040888,30]
[362403439,1748253085241,-1479.38692585,0.0004089,120]
[362403440,1748253085250,-10080.78249115,0.000409,5]
[362403441,1748253085257,-600.0,0.000409,14]
[362403442,1748253085266,-1000.0,0.00040912,30]
[362403443,1748253085273,-779.3042352,0.00040926,30]
[362403444,1748253085281,-150.0,0.00040927,2]
[362403445,1748253085289,-150.0,0.00040942,2]
[362403446,1748253085297,-150.0,0.00040947,2]
[362403447,1748253085304,-500.0,0.00040974,30]
[362403448,1748253085314,-15048.93998968,0.00040992,30]
[362403449,1748253085321,-50000.0,0.00041,41]
[362403450,1748253085330,-250.1368563,0.00041,14]
[362403451,1748253085336,-500.0,0.00041,15]
[362403452,1748253085343,-15408.86194551,0.00041,5]
[362403453,1748253085350,-22985.39193993,0.00041,5]
[362403454,1748253085359,-19806.24268573,0.00041,7]
[362403455,1748253085368,-50000.0,0.00041,28]
[362403456,1748253085377,-915.53950995,0.00041,30]
[362403457,1748253085385,-158.0,0.00041,30]
[362403458,1748253085394,-1574.0,0.00041,120]
[362403459,1748253085402,-10000.0,0.00041,120]
[362403460,1748253085410,-178.0,0.00041,120]
[362403461,1748253085418,-178.0,0.00041,45]
[362403462,1748253085427,-223.23,0.00041,120]
[362403463,1748253085436,-2620.04606465,0.00041,30]
[362403464,1748253085444,-900.0,0.00041,2]
[362403465,1748253085451,-150.0,0.00041,2]
[362403466,1748253085458,-10000.0,0.00041,120]
[362403467,1748253085467,-887.62271074,0.0004103,7]
[362403468,1748253085476,-985.04066658,0.0004103,7]
[362403469,1748253085485,-951.1652311,0.00041046,30]
[362403470,1748253085493,-150.0,0.00041052,2]
[362403471,1748253085503,-940.73463164,0.00041054,30]
[362403472,1748253085512,-700.0,0.0004107,3]
[362403473,1748253085518,-500.0,0.00041082,30]
[362403474,1748253085526,-1000.0,0.00041083,7]
[362403475,1748253085534,-475.47033,0.00041088,30]
[362403476,1748253085541,-2790.46114001,0.00041094,7]
[362403477,1748253085548,-3499.14837373,0.00041094,30]
[362403478,1748253085555,-180.8513313,0.00041095,2]
[362403479,1748253085563,-2121.1575,0.00041095,8]
[362403480,1748253085570,-420.0,0.00041095,30]
[362403481,1748253085580,-446.31770014,0.00041095,30]
[362403482,1748253085589,-2570.66,0.00041095,2]
[362403483,1748253085598,-2570.66,0.00041095,2]
[362403484,1748253085608,-2570.66,0.00041095,2]
[362403485,1748253085617,-2570.66,0.00041095,2]
[362403486,1748253085625,-2570.66,0.00041095,2]
[362403487,1748253085635,-2570.66,0.00041095,2]
[362403488,1748253085646,-2570.66,0.00041095,2]
[362403489,1748253085656,-2570.66,0.00041095,2]
[362403490,1748253085667,-2570.66,0.00041095,2]
[362403491,1748253085676,-2570.66,0.00041095,2]
[362403492,1748253085686,-2570.66,0.00041095,2]
[362403493,1748253085696,-2570.66,0.00041095,2]
[362403494,1748253085706,-2570.66,0.00041095,2]
[362403495,1748253085716,-2570.66,0.00041095,2]
[362403496,1748253085726,-2570.66,0.00041095,2]
[362403497,1748253085735,-2570.66,0.00041095,2]
[362403498,1748253085744,-2570.66,0.00041095,2]
[362403499,1748253085755,-2570.66,0.00041095,2]
[362403500,1748253085766,-2570.66,0.00041095,2]
[362403501,1748253085776,-2570.66,0.00041095,2]
[362403502,1748253085787,-2570.66,0.00041095,2]
[362403503,1748253085796,-2570.66,0.00041095,2]
[362403504,1748253085806,-2570.66,0.00041095,2]
[362403505,1748253085815,-2570.66,0.00041095,2]
[362403506,1748253085825,-500.0,0.00041095,120]
[362403507,1748253085835,-500.0,0.00041095,120]
[362403508,1748253085845,-500.0,0.00041095,120]
[362403509,1748253085854,-500.0,0.00041095,120]
[362403510,1748253085863,-500.0,0.00041095,120]
[362403511,1748253085873,-500.0,0.00041095,120]
[362403512,1748253085882,-500.0,0.00041095,120]
[362403513,1748253085893,-150.78425102,0.00041095,120]
[362403514,1748253085902,-555.63,0.00041095,2]
[362403515,1748253085912,-555.63,0.00041095,2]
[362403516,1748253085924,-555.63,0.00041095,2]
[362403517,1748253085934,-555.63,0.00041095,2]
[362403518,1748253085944,-555.63,0.00041095,2]
[362403519,1748253085955,-555.63,0.00041095,2]
[362403520,1748253085967,-555.63,0.00041095,2]
[362403521,1748253085979,-555.63,0.00041095,2]
[362403522,1748253085989,-555.63,0.00041095,2]
[362403523,1748253085999,-555.63,0.00041095,2]
[362403524,1748253086008,-555.63,0.00041095,2]
[362403525,1748253086018,-555.63,0.00041095,2]
[362403526,1748253086028,-555.63,0.00041095,2]
[362403527,1748253086037,-555.63,0.00041095,2]
[362403528,1748253086051,-555.63,0.00041095,2]
[362403529,1748253086061,-555.63,0.00041095,2]
[362403530,1748253086070,-555.63,0.00041095,2]
[362403531,1748253086080,-555.63,0.00041095,2]
[362403532,1748253086090,-555.63,0.00041095,2]
[362403533,1748253086099,-555.63,0.00041095,2]
[362403534,1748253086109,-555.63,0.00041095,2]
[362403535,1748253086118,-555.63,0.00041095,2]
[362403536,1748253086129,-555.63,0.00041095,2]
[362403537,1748253086138,-555.63479656,0.00041095,2]
[362403538,1748253086147,-500.0,0.00041096,10]
[362403539,1748253086157,-5000.0,0.00041096,120]
[362403540,1748253086166,-4000.0,0.00041096,2]
[362403541,1748253086176,-230.0,0.00041096,120]
[362403542,1748253086185,-184.75965783,0.00041096,31]
[362403543,1748253086195,-150.0,0.00041096,2]
[362403544,1748253086204,-865.98045895,0.000411,120]
[362403545,1748253086214,-865.98045895,0.000411,120]
[362403546,1748253086224,-865.98045895,0.000411,120]
[362403547,1748253086234,-865.98045895,0.000411,120]
[362403548,1748253086243,-865.98045895,0.000411,120]
[362403549,1748253086253,-865.98045895,0.000411,120]
[362403550,1748253086262,-865.98045895,0.000411,120]
[362403551,1748253086272,-865.98045895,0.000411,120]
[362403552,1748253086281,-865.98045895,0.000411,120]
[362403553,1748253086290,-865.98045895,0.000411,120]
[362403554,1748253086300,-865.98045895,0.000411,120]
[362403555,1748253086310,-865.98045895,0.000411,120]
[362403556,1748253086321,-865.98045895,0.000411,120]
[362403557,1748253086331,-865.98045895,0.000411,120]
[362403558,1748253086340,-865.98045895,0.000411,120]
[362403559,1748253086349,-865.98045895,0.000411,120]
[362403560,1748253086359,-865.98045895,0.000411,120]
[362403561,1748253086368,-865.98045895,0.000411,120]
[362403562,1748253086378,-865.98045895,0.000411,120]
[362403563,1748253086388,-865.98,0.000411,120]
[362403564,1748253086397,-2020.62107088,0.000411,120]
[362403565,1748253086407,-2020.62107088,0.000411,120]
[362403566,1748253086417,-2020.62107088,0.000411,120]
[362403567,1748253086426,-2020.62107088,0.000411,120]
[362403568,1748253086436,-2020.62107088,0.000411,120]
[362403569,1748253086445,-2020.62107088,0.000411,120]
[362403570,1748253086454,-2020.62107088,0.000411,120]
[362403571,1748253086464,-2020.62107088,0.000411,120]
[362403572,1748253086473,-2020.62107088,0.000411,120]
[362403573,1748253086482,-2020.62107088,0.000411,120]
[362403574,1748253086491,-2020.62107088,0.000411,120]
[362403575,1748253086500,-2020.62107088,0.000411,120]
[362403576,1748253086510,-2020.62107088,0.000411,120]
[362403577,1748253086519,-2020.62107088,0.000411,120]
[362403578,1748253086529,-2020.62107088,0.000411,120]
[362403579,1748253086538,-2020.62107088,0.000411,120]
[362403580,1748253086548,-2020.62107088,0.000411,120]
[362403581,1748253086557,-2020.62107088,0.000411,120]
[362403582,1748253086566,-2020.62107088,0.000411,120]
[362403583,1748253086576,-2020.62,0.000411,120]
[362403584,1748253086585,-872.42328219,0.000411,120]
[362403585,1748253086594,-872.42328219,0.000411,120]
[362403586,1748253086603,-872.42328219,0.000411,120]
[362403587,1748253086612,-872.42328219,0.000411,120]
[362403588,1748253086621,-872.42328219,0.000411,120]
[362403589,1748253086630,-872.42328219,0.000411,120]
[362403590,1748253086640,-872.42328219,0.000411,120]
[362403591,1748253086649,-872.42328219,0.000411,120]
[362403592,1748253086659,-872.42328219,0.000411,120]
[362403593,1748253086668,-872.42328219,0.000411,120]
[362403594,1748253086678,-872.42328219,0.000411,120]
[362403595,1748253086688,-872.42328219,0.000411,120]
[362403596,1748253086698,-872.42328219,0.000411,120]
[362403597,1748253086709,-872.42328219,0.000411,120]
[362403598,1748253086719,-872.42328219,0.000411,120]
[362403599,1748253086729,-872.42328219,0.000411,120]
[362403600,1748253086738,-872.42328219,0.000411,120]
[362403601,1748253086749,-872.42328219,0.000411,120]
[362403602,1748253086884,-872.42328219,0.000411,120]
[362403603,1748253086896,-872.42,0.000411,120]
[362403604,1748253086906,-2035.6543251,0.000411,120]
[362403605,1748253086915,-2035.6543251,0.000411,120]
[362403606,1748253086924,-2035.6543251,0.000411,120]
[362403607,1748253086933,-2035.6543251,0.000411,120]
[362403608,1748253086943,-2035.6543251,0.000411,120]
[362403609,1748253086952,-2035.6543251,0.000411,120]
[362403610,1748253086962,-2035.6543251,0.000411,120]
[362403611,1748253086973,-2035.6543251,0.000411,120]
[362403612,1748253086982,-2035.6543251,0.000411,120]
[362403613,1748253086992,-2035.6543251,0.000411,120]
[362403614,1748253087001,-2035.6543251,0.000411,120]
[362403615,1748253087011,-2035.6543251,0.000411,120]
[362403616,1748253087020,-2035.6543251,0.000411,120]
[362403617,1748253087029,-2035.6543251,0.000411,120]
[362403618,1748253087039,-2035.6543251,0.000411,120]
[362403619,1748253087051,-2035.6543251,0.000411,120]
[362403620,1748253087060,-2035.6543251,0.000411,120]
[362403621,1748253087069,-2035.6543251,0.000411,120]
[362403622,1748253087079,-2035.6543251,0.000411,120]
[362403623,1748253087088,-2035.65,0.000411,120]
[362403624,1748253087098,-485.04019941,0.000411,120]
[362403625,1748253087108,-485.04019941,0.000411,120]
[362403626,1748253087119,-485.04019941,0.000411,120]
[362403627,1748253087129,-485.04019941,0.000411,120]
[362403628,1748253087140,-485.04019941,0.000411,120]
[362403629,1748253087149,-485.04019941,0.000411,120]
[362403630,1748253087158,-485.04019941,0.000411,120]
[362403631,1748253087168,-485.04019941,0.000411,120]
[362403632,1748253087178,-485.04019941,0.000411,120]
[362403633,1748253087187,-485.04019941,0.000411,120]
[362403634,1748253087197,-485.04019941,0.000411,120]
[362403635,1748253087207,-485.04019941,0.000411,120]
[362403636,1748253087217,-485.04019941,0.000411,120]
[362403637,1748253087226,-485.04019941,0.000411,120]
[362403638,1748253087236,-485.04019941,0.000411,120]
[362403639,1748253087246,-485.04019941,0.000411,120]
[362403640,1748253087255,-485.04019941,0.000411,120]
[362403641,1748253087265,-485.04019941,0.000411,120]
[362403642,1748253087274,-485.04019941,0.000411,120]
[362403643,1748253087283,-485.04,0.000411,120]
[362403644,1748253087292,-1131.7604653,0.000411,120]
[362403645,1748253087302,-1131.7604653,0.000411,120]
[362403646,1748253087311,-1131.7604653,0.000411,120]
[362403647,1748253087321,-1131.7604653,0.000411,120]
[362403648,1748253087331,-1131.7604653,0.000411,120]
[362403649,1748253087342,-1131.7604653,0.000411,120]
[362403650,1748253087351,-1131.7604653,0.000411,120]
[362403651,1748253087361,-1131.7604653,0.000411,120]
[362403652,1748253087370,-1131.7604653,0.000411,120]
[362403653,1748253087380,-1131.7604653,0.000411,120]
[362403654,1748253087390,-1131.7604653,0.000411,120]
[362403655,1748253087400,-1131.7604653,0.000411,120]
[362403656,1748253087409,-1131.7604653,0.000411,120]
[362403657,1748253087419,-1131.7604653,0.000411,120]
[362403658,1748253087428,-1131.7604653,0.000411,120]
[362403659,1748253087438,-1131.7604653,0.000411,120]
[362403660,1748253087448,-1131.7604653,0.000411,120]
[362403661,1748253087458,-1131.7604653,0.000411,120]
[362403662,1748253087468,-1131.7604653,0.000411,120]
[362403663,1748253087477,-1131.76,0.000411,120]
[362403664,1748253087487,-386.90176451,0.000411,2]
[362403665,1748253087496,-150.0,0.00041102,14]
[362403666,1748253087506,-150.0,0.00041121,2]
[362403667,1748253087515,-1000.0,0.00041125,30]
[362403668,1748253087525,-1453.52333459,0.00041143,30]
[362403669,1748253087535,-1000.0,0.00041143,14]
[362403670,1748253087544,-150.0,0.00041151,2]
[362403671,1748253087554,-150.0,0.00041173,2]
[362403672,1748253087564,-1000.0,0.00041178,14]
[362403673,1748253087574,-500.0,0.00041179,30]
[362403674,1748253087583,-150.0,0.00041191,120]
[362403675,1748253087593,-159.0,0.000412,120]
[362403676,1748253087602,-168.0,0.000412,120]
[362403677,1748253087612,-339.86504,0.000412,120]
[362403678,1748253087621,-150.0,0.00041206,120]
[362403679,1748253087632,-921.3319177,0.0004122,26]
[362403680,1748253087643,-1000.0,0.00041221,14]
[362403681,1748253087652,-1000.0,0.0004123,14]
[362403682,1748253087661,-1000.0,0.00041237,14]
[362403683,1748253087671,-150.0,0.00041251,120]
[362403684,1748253087680,-150.0,0.00041253,2]
[362403685,1748253087690,-150.0,0.00041267,2]
[362403686,1748253087699,-895.81402036,0.00041268,30]
[362403687,1748253087708,-475.47033,0.00041288,30]
[362403688,1748253087718,-239.5947966,0.0004133,2]
[362403689,1748253087728,-160.97556506,0.0004133,2]
[362403690,1748253087738,-150.0,0.00041332,2]
[362403691,1748253087748,-152.0,0.00041334,8]
[362403692,1748253087757,-150.0,0.00041368,2]
[362403693,1748253087768,-150.0,0.00041377,2]
[362403694,1748253087778,-1000.0,0.00041384,14]
[362403695,1748253087787,-1907.82,0.00041397,120]
[362403696,1748253087797,-1907.82,0.00041397,120]
[362403697,1748253087807,-1907.82,0.00041397,120]
[362403698,1748253087816,-1907.82,0.00041397,120]
[362403699,1748253087825,-1907.82,0.00041397,120]
[362403700,1748253087835,-1907.82,0.00041397,120]
[362403701,1748253087845,-1907.82,0.00041397,120]
[362403702,1748253087855,-1907.82,0.00041397,120]
[362403703,1748253087864,-1907.82,0.00041397,120]
[362403704,1748253087873,-1907.82,0.00041397,120]
[362403705,1748253087883,-1907.82,0.00041397,120]
[362403706,1748253087893,-1907.82,0.00041397,120]
[362403707,1748253087902,-1907.82,0.00041397,120]
[362403708,1748253087911,-1907.82,0.00041397,120]
[362403709,1748253087921,-1907.82,0.00041397,120]
[362403710,1748253087930,-1907.82,0.00041397,120]
[362403711,1748253087940,-1907.82,0.00041397,120]
[362403712,1748253087949,-1907.82,0.00041397,120]
[362403713,1748253087959,-3299.14385806,0.00041418,30]
[362403714,1748253087968,-150.0,0.00041424,2]
[362403715,1748253087978,-158.9609818,0.00041427,14]
[362403716,1748253087988,-420.0,0.00041427,40]
[362403717,1748253087997,-1000.0,0.00041428,14]
[362403718,1748253088007,-9984.0,0.00041429,40]
[362403719,1748253088016,-121332.86118824,0.0004143,2]
[362403720,1748253088025,-10639.02990383,0.0004143,3]
[362403721,1748253088035,-1210.0,0.0004143,2]
[362403722,1748253088046,-704.92388077,0.0004143,2]
[362403723,1748253088058,-363.00198434,0.0004143,2]
[362403724,1748253088069,-1991.27315494,0.0004143,5]
[362403725,1748253088079,-349.10711512,0.0004143,2]
[362403726,1748253088088,-763.40035235,0.0004143,2]
[362403727,1748253088098,-1524.34512327,0.0004143,2]
[362403728,1748253088107,-1031.92327554,0.0004143,2]
[362403729,1748253088117,-5198.61736388,0.0004143,2]
[362403730,1748253088127,-2462.07239495,0.0004143,2]
[362403731,1748253088136,-2712.33541492,0.0004143,2]
[362403732,1748253088146,-151.65570723,0.0004143,2]
[362403733,1748253088155,-44052.38412844,0.0004143,2]
[362403734,1748253088165,-980.1160566,0.0004143,5]
[362403735,1748253088175,-249.71013142,0.0004143,2]
[362403736,1748253088184,-164.80078067,0.0004143,2]
[362403737,1748253088193,-654.65054522,0.0004143,2]
[362403738,1748253088203,-1264.62576091,0.0004143,2]
[362403739,1748253088213,-243.90461192,0.0004143,2]
[362403740,1748253088222,-7741.04257207,0.0004143,2]
[362403741,1748253088232,-182.31204198,0.0004143,2]
[362403742,1748253088241,-1043.86656215,0.0004143,2]
[362403743,1748253088250,-594.07582248,0.0004143,5]
[362403744,1748253088260,-596.17517258,0.0004143,2]
[362403745,1748253088269,-9260.05455398,0.0004143,2]
[362403746,1748253088279,-1314.63748868,0.0004143,2]
[362403747,1748253088289,-3428.08393772,0.0004143,2]
[362403748,1748253088302,-77197.52784555,0.0004143,2]
[362403749,1748253088322,-12866.18305873,0.0004143,2]
[362403750,1748253088334,-1924.59513174,0.0004143,2]
[362403751,1748253088344,-184.49226055,0.0004143,2]
[362403752,1748253088353,-5032.93619158,0.0004143,2]
[362403753,1748253088363,-14896.59935969,0.0004143,3]
[362403754,1748253088373,-643.0,0.0004143,2]
[362403755,1748253088383,-3100.0,0.0004143,5]
[362403756,1748253088393,-972.54209259,0.0004143,2]
[362403757,1748253088402,-7783.9286404,0.0004143,2]
[362403758,1748253088412,-18991.92461332,0.0004143,5]
[362403759,1748253088421,-25416.06147454,0.0004143,2]
[362403760,1748253088430,-574.54674305,0.0004143,2]
[362403761,1748253088440,-1840.52011609,0.0004143,2]
[362403762,1748253088450,-3251.03583096,0.0004143,2]
[362403763,1748253088459,-175.84895903,0.0004143,2]
[362403764,1748253088469,-7103.22343374,0.0004143,2]
[362403765,1748253088478,-550.0,0.0004143,2]
[362403766,1748253088487,-1470.23329517,0.0004143,2]
[362403767,1748253088498,-1010.79788392,0.0004143,2]
[362403768,1748253088507,-1000.27334317,0.0004143,2]
[362403769,1748253088516,-10731.34692924,0.0004143,2]
[362403770,1748253088527,-170281.67331043,0.0004143,2]
[362403771,1748253088536,-14991.86727266,0.0004143,2]
[362403772,1748253088547,-229.59140761,0.0004143,2]